bitfinex/quotes_ETHUSD_20251124
["timestamp","ask_amount","ask_price","bid_price","bid_amount"]
[1763986764822,0.33293799,2803.5,2803.3,0.4889]
[1763986765013,0.33293799,2803.4,2803.2,0.4899]
[1763986765210,0.33293799,2803.3,2803.2,0.001]
[1763986765418,0.81303799,2803.6,2803.2,0.001]
[1763986765620,0.33293799,2803.5,2803.2,0.001]
[1763986765813,0.33293799,2803.4,2803.2,0.001]
[1763986766016,0.33293799,2803.3,2803.2,0.001]
[1763986766216,2.01116924,2803.3,2803.2,0.001]
[1763986766737,1.1041766,2803.3,2803.2,0.001]
[1763986767520,1.1061766,2803.3,2803.2,0.001]
[1763986768910,1.0369766,2803.3,2803.2,0.4769]
[1763986769106,1.0369766,2803.3,2803.2,0.9658]
[1763986769428,1.0369766,2803.3,2803.2,0.001]
[1763986769836,1.4855766,2803.3,2803.2,0.001]
[1763986770357,3.26180232,2803.3,2803.2,0.001]
[1763986770557,1.5859766,2803.3,2803.2,0.001]
[1763986770758,1.4855766,2803.3,2803.2,0.001]
[1763986770978,2.76031535,2803.3,2803.2,0.001]
[1763986773052,2.65991535,2803.3,2803.2,0.001]
[1763986773260,2.76031535,2803.3,2803.2,0.001]
[1763986774265,4.72734896,2803.3,2803.2,0.001]
[1763986774433,5.68770863,2803.3,2803.2,0.001]
[1763986777244,4.72734896,2803.3,2803.2,0.001]
[1763986778157,4.72654896,2803.3,2803.2,0.001]
[1763986778362,4.62614896,2803.3,2803.2,0.001]
[1763986778531,9.7817078,2803.3,2803.2,0.001]
[1763986780666,9.7817078,2803.3,2803.2,0.4769]
[1763986780667,8.17266683,2803.3,2803.2,0.4769]
[1763986781171,9.7816078,2803.3,2803.2,0.001]
[1763986781341,1.31249664,2803.2,2803.1,0.001]
[1763986781666,3.69325911,2803.2,2803.1,0.001]
[1763986782031,4.17335911,2803.2,2803.1,0.001]
[1763986784866,0.405504,2803.0,2802.8,0.001]
[1763986785052,13.34918645,2802.9,2802.8,0.001]
[1763986785252,15.24345911,2802.9,2802.8,0.001]
[1763986786761,14.70192814,2802.9,2802.8,0.4769]
[1763986787143,14.70192814,2802.9,2802.8,0.933]
[1763986788078,14.29642414,2802.9,2802.8,0.933]
[1763986788271,7.85642414,2802.9,2802.8,0.933]
[1763986789010,5.96215148,2802.9,2802.8,0.933]
[1763986790171,6.29602192,2802.9,2802.8,0.933]
[1763986790773,6.29602192,2802.9,2802.8,0.4769]
[1763986791235,6.29602192,2802.9,2802.8,0.94]
[1763986792876,1.24086308,2802.9,2802.8,0.94]
[1763986794068,1.24086308,2802.9,2802.8,0.001]
[1763986794268,1.87046527,2802.9,2802.8,0.4781]
[1763986794877,1.87046527,2802.9,2802.8,0.9412]
[1763986796383,1.92176527,2802.9,2802.8,0.001]
[1763986796550,3.75158002,2802.9,2802.8,0.001]
[1763986796874,0.0056,2802.6,2802.2,0.001]
[1763986797086,1.31249664,2802.4,2802.2,0.001]
[1763986797287,0.73937444,2802.3,2802.2,0.001]
[1763986798992,0.73937444,2802.3,2802.2,0.4781]
[1763986799691,0.33387044,2802.3,2802.2,0.9412]
[1763986799858,1.96764973,2802.3,2802.2,0.001]
[1763986800054,4.21042921,2802.3,2802.2,0.001]
[1763986801925,4.20962921,2802.3,2802.2,0.001]
[1763986803519,4.70332921,2802.3,2802.2,0.001]
[1763986806437,1.31249664,2802.2,2802.1,0.001]
[1763986806602,6.36765548,2802.0,2801.9,0.001]
[1763986806792,6.41405548,2802.0,2801.9,0.001]
[1763986806995,7.47409645,2802.0,2801.9,0.001]
[1763986808144,0.90699264,2802.0,2801.9,0.9412]
[1763986809317,5.05515884,2802.4,2801.9,0.9412]
[1763986809541,5.05515884,2802.4,2802.3,0.6666]
[1763986809711,5.96215148,2802.4,2802.3,0.6666]
[1763986809914,0.90699264,2802.4,2802.3,1.1297]
[1763986813922,1.2409679,2802.4,2802.3,1.1297]
[1763986815132,0.90699264,2802.4,2802.3,1.1297]
[1763986816740,0.002,2803.0,2802.3,1.1297]
[1763986816937,0.90899264,2803.0,2802.9,0.4771]
[1763986817115,1.24294046,2803.0,2802.9,0.4771]
[1763986817316,1.24294046,2803.0,2802.9,0.9402]
[1763986817748,1.71914046,2803.0,2802.4,0.4631]
[1763986817913,0.90699264,2802.6,2802.5,0.4631]
[1763986818348,0.90699264,2802.6,2802.5,0.9402]
[1763986820258,0.90899264,2802.6,2802.5,0.9402]
[1763986821031,0.002,2802.6,2802.5,0.9402]
[1763986821255,0.002,2802.6,2802.5,1.0402]
[1763986821763,0.90899264,2802.6,2802.5,0.9747]
[1763986822269,1.50540779,2802.6,2802.5,0.9747]
[1763986822915,0.90899264,2802.6,2802.5,0.9747]
[1763986824466,0.002,2802.6,2802.5,0.9747]
[1763986825630,0.0012,2802.6,2802.5,0.9747]
[1763986827465,0.0012,2802.6,2802.5,1.0747]
[1763986827638,0.0012,2802.6,2802.5,2.0494]
[1763986827839,0.0012,2802.6,2802.5,2.27329]
[1763986832447,0.0012,2802.6,2802.5,1.9694]
[1763986832647,0.002,2802.9,2802.5,1.90508242]
[1763986832844,0.002,2802.9,2802.8,0.5786]
[1763986833078,0.002,2802.9,2802.8,1.673818]
[1763986833277,0.002,2803.0,2802.9,0.1]
[1763986833482,0.002,2803.0,2802.9,1.0762]
[1763986834234,0.002,2803.2,2802.9,1.0762]
[1763986834413,0.002,2803.2,2803.1,0.7613]
[1763986834792,0.002,2803.2,2803.1,1.2589]
[1763986837154,0.002,2803.2,2803.1,1.40186768]
[1763986839909,0.002,2803.2,2803.1,1.80737168]
[1763986840189,0.002,2803.2,2803.1,2.53638163]
[1763986841565,0.002,2803.2,2803.1,7.43636167]
[1763986841784,0.002,2803.2,2803.1,7.40068689]
[1763986843399,0.002,2803.5,2803.1,11.87515839]
[1763986843603,0.002,2803.5,2803.2,1.51737751]
[1763986843802,0.002,2803.5,2803.2,3.08780859]
[1763986844201,0.002,2803.5,2803.2,3.23075175]
[1763986845172,0.002,2803.5,2803.2,8.09505828]
[1763986845401,0.002,2803.6,2803.4,10.25817377]
[1763986845704,0.002,2803.8,2803.7,5.40548404]
[1763986846005,0.002,2803.8,2803.7,0.984104]
[1763986846222,0.002,2803.8,2803.7,1.481704]
[1763986846424,0.002,2803.8,2803.7,1.62462826]
[1763986846771,0.002,2803.8,2803.7,1.21912426]
[1763986846999,0.002,2803.8,2803.7,1.85363469]
[1763986847186,0.002,2803.8,2803.7,6.75361473]
[1763986847383,0.002,2803.8,2803.7,8.10177852]
[1763986847584,0.002,2803.9,2803.8,0.1]
[1763986847790,0.002,2804.3,2803.9,10.799372]
[1763986847974,0.002,2804.3,2804.2,0.405504]
[1763986848282,0.002,2804.5,2804.4,1.41249664]
[1763986848484,0.0016,2804.9,2804.8,5.40548404]
[1763986848705,0.0016,2804.9,2804.8,6.12248404]
[1763986848906,0.0016,2804.9,2804.8,7.71403244]
[1763986849407,0.0008,2804.9,2804.8,7.71403244]
[1763986851307,0.0008,2804.9,2804.8,11.27934904]
[1763986851494,0.0008,2804.9,2804.8,7.71403244]
[1763986851976,0.0008,2804.9,2804.8,11.27934904]
[1763986852477,0.0008,2804.9,2804.8,12.18634168]
[1763986853380,0.0008,2804.9,2804.8,8.62102508]
[1763986854298,0.0008,2804.9,2804.8,12.18634168]
[1763986854504,0.0008,2804.9,2804.8,8.62102508]
[1763986854703,0.0008,2804.9,2804.8,12.18634168]
[1763986854925,0.0008,2804.9,2804.8,25.14126572]
[1763986855081,0.0008,2804.9,2804.8,20.24228568]
[1763986855418,0.0008,2804.9,2804.8,8.62202508]
[1763986855578,0.0008,2804.9,2804.8,12.18734168]
[1763986855919,0.0008,2804.9,2804.8,16.99182768]
[1763986856225,0.0008,2804.9,2804.8,11.07590808]
[1763986856404,0.0008,2804.9,2804.8,14.64122468]
[1763986856584,0.0008,2804.9,2804.8,14.27892068]
[1763986857225,0.0008,2804.9,2804.8,24.06738772]
[1763986857433,0.0008,2804.9,2804.8,19.24675372]
[1763986857596,0.0008,2804.9,2804.8,14.34677368]
[1763986858296,0.0008,2804.9,2804.8,15.18786068]
[1763986858728,0.0008,2804.9,2804.8,8.62202508]
[1763986859031,0.0008,2804.9,2804.8,1.9118484]
[1763986859216,0.0008,2804.9,2804.8,1.2996]
[1763986860626,0.2776,2804.9,2804.8,0.8086]
[1763986861338,0.7377,2804.9,2804.8,0.8086]
[1763986861500,0.0008,2804.9,2804.8,1.2623]
[1763986861695,0.0008,2804.9,2804.8,1.7294]
[1763986862505,0.0008,2804.9,2804.8,0.8086]
[1763986862954,0.0008,2804.9,2804.8,1.2623]
[1763986863250,0.4654,2804.9,2804.8,0.4826]
[1763986863656,0.0008,2804.9,2804.8,0.9363]
[1763986863804,0.0008,2804.9,2804.8,1.53905316]
[1763986864629,0.0008,2804.9,2804.8,0.9363]
[1763986864829,0.264,2804.9,2804.8,1.0363]
[1763986865405,0.266,2804.9,2804.8,0.4826]
[1763986865640,0.9133,2804.9,2804.8,0.4826]
[1763986865799,0.0008,2804.9,2804.8,1.0363]
[1763986866001,0.0008,2804.9,2804.8,1.94455716]
[1763986866224,0.0008,2804.9,2804.8,2.58626249]
[1763986867233,0.0008,2804.9,2804.8,6.15157909]
[1763986867438,0.0008,2804.9,2804.8,3.45760197]
[1763986867608,0.0008,2804.9,2804.8,2.81589664]
[1763986868836,0.0008,2804.9,2804.8,1.0363]
[1763986869131,0.0008,2804.9,2804.8,1.441804]
[1763986869338,0.0008,2804.9,2804.8,1.908904]
[1763986869936,0.0008,2804.9,2804.8,1.94455716]
[1763986870133,0.0008,2804.9,2804.8,2.4714948]
[1763986870333,0.0008,2804.9,2804.8,2.9385948]
[1763986871623,0.0008,2804.9,2804.8,9.5906592]
[1763986871839,0.0008,2804.9,2804.8,9.55500604]
[1763986872968,0.0008,2804.9,2804.8,18.18100104]
[1763986873160,0.002,2805.2,2805.1,0.505504]
[1763986873333,0.002,2805.2,2805.1,4.41397335]
[1763986873533,0.002,2805.2,2805.1,4.36817335]
[1763986873858,0.002,2805.2,2805.1,5.45168864]
[1763986874363,0.002,2805.2,2805.1,7.43645929]
[1763986874525,0.002,2805.2,2805.1,3.25941816]
[1763986874726,0.002,2805.2,2805.1,1.851104]
[1763986874974,0.002,2805.2,2805.1,5.41603929]
[1763986876565,0.002,2805.2,2805.1,6.04283929]
[1763986876728,0.002,2805.2,2805.1,3.38489664]
[1763986876926,0.002,2805.2,2805.1,2.477904]
[1763986877156,0.002,2805.2,2805.1,3.17290724]
[1763986877543,0.002,2805.2,2805.1,3.20855659]
[1763986878065,0.002,2805.2,2805.1,7.64483517]
[1763986878365,0.002,2805.2,2805.1,9.94245517]
[1763986878563,0.002,2805.2,2805.1,7.64483517]
[1763986880575,0.002,2805.2,2805.1,12.53265747]
[1763986880896,0.002,2805.2,2805.1,15.15947447]
[1763986881472,0.002,2805.2,2805.1,12.53265747]
[1763986881872,0.002,2805.2,2805.1,16.22270447]
[1763986883402,0.002,2805.2,2805.1,15.84448147]
[1763986883574,0.002,2805.2,2805.1,15.19148147]
[1763986884093,0.002,2805.2,2805.1,12.53265747]
[1763986884300,0.002,2805.2,2805.1,14.81708147]
[1763986885467,0.002,2805.2,2805.1,3.18799988]
[1763986885771,0.002,2805.2,2805.1,3.41399988]
[1763986887366,0.2566,2805.2,2805.1,2.16529664]
[1763986887600,0.2566,2805.2,2805.1,2.26529664]
[1763986889201,0.002,2805.2,2805.1,2.72799664]
[1763986889402,0.002,2805.2,2805.1,3.39859664]
[1763986889626,0.002,2805.2,2805.1,8.19985161]
[1763986889906,0.002,2805.2,2805.1,8.16420226]
[1763986890110,0.002,2805.2,2805.1,23.46285826]
[1763986890263,0.002,2805.2,2805.1,19.13785626]
[1763986891004,0.002,2805.2,2805.1,8.16420226]
[1763986891204,0.002,2805.2,2805.1,19.27755626]
[1763986891395,0.002,2805.2,2805.1,14.34625626]
[1763986892117,0.002,2805.2,2805.1,19.17811065]
[1763986893172,0.002,2805.2,2805.1,34.74620265]
[1763986893394,0.002,2805.2,2805.1,34.42200565]
[1763986894070,0.002,2805.2,2805.1,13.20624965]
[1763986894304,0.002,2805.2,2805.1,27.46021065]
[1763986894701,0.002,2805.2,2805.1,27.10667165]
[1763986894906,0.002,2805.2,2805.1,25.97194465]
[1763986895102,0.002,2805.2,2805.1,6.94689826]
[1763986895309,0.002,2805.2,2805.1,8.68552528]
[1763986895515,0.002,2805.2,2805.1,6.55802793]
[1763986895701,0.002,2805.2,2805.1,6.59367728]
[1763986895905,0.002,2805.2,2805.1,9.16452528]
[1763986896133,0.002,2805.2,2805.1,9.12887593]
[1763986896332,0.002,2805.2,2805.1,6.96353193]
[1763986896623,0.002,2805.2,2805.1,8.55634397]
[1763986896826,0.002,2805.2,2805.1,11.09154262]
[1763986897026,0.0012,2805.2,2805.1,11.09154262]
[1763986897219,0.0012,2805.2,2805.1,8.52069462]
[1763986897824,0.0012,2805.2,2805.1,10.93424762]
[1763986898018,0.0012,2805.2,2805.1,14.81424762]
[1763986898197,0.0012,2805.2,2805.1,18.18918262]
[1763986898724,0.0012,2805.2,2805.1,16.26780362]
[1763986898923,0.0012,2805.2,2805.1,15.42924562]
[1763986899125,0.002,2805.5,2805.2,1.31249664]
[1763986899307,0.002,2805.5,2805.4,0.1]
[1763986899708,0.002,2805.5,2805.4,0.505504]
[1763986900015,0.002,2805.5,2805.4,0.982004]
[1763986900221,0.002,2805.5,2805.4,1.444704]
[1763986900430,0.002,2805.5,2805.4,5.04490361]
[1763986900629,0.002,2805.5,2805.4,6.72113897]
[1763986901431,0.226,2805.5,2805.4,2.65823936]
[1763986901735,0.698,2805.5,2805.4,0.5765]
[1763986904020,0.698,2805.5,2805.4,0.4765]
[1763986904226,0.698,2805.5,2804.9,0.101]
[1763986904520,0.224,2805.0,2804.9,0.101]
[1763986905039,0.696,2805.0,2804.9,0.101]
[1763986907655,0.696,2805.0,2804.9,0.001]
[1763986908255,0.696,2805.0,2804.9,0.101]
[1763986908749,0.224,2805.0,2804.9,0.101]
[1763986909333,0.002,2805.2,2805.1,0.1]
[1763986909531,0.002,2805.2,2805.1,0.13564935]
[1763986909732,0.6979,2805.2,2805.1,0.1]
[1763986910142,0.6979,2805.2,2805.0,0.1]
[1763986910343,0.4914,2805.2,2805.0,0.1]
[1763986910556,0.002,2805.2,2805.1,0.1]
[1763986910950,0.4641,2805.2,2805.1,0.1]
[1763986911330,0.7004,2805.2,2805.1,0.1]
[1763986911529,0.4641,2805.2,2805.1,0.1]
[1763986911849,0.7004,2805.2,2805.1,0.1]
[1763986912263,0.7004,2805.2,2805.1,0.24287525]
[1763986914865,0.4641,2805.2,2805.1,0.24287525]
[1763986917842,0.002,2805.2,2805.1,0.7664246]
[1763986918049,0.002,2805.2,2805.1,0.95646632]
[1763986918385,0.002,2805.2,2805.1,1.41576632]
[1763986918780,0.002,2805.2,2805.1,1.60376632]
[1763986919282,0.6979,2805.2,2805.1,0.43291697]
[1763986919582,0.6979,2805.2,2805.1,0.24287525]
[1763986920759,0.6971,2805.2,2805.1,0.14287525]
[1763986920966,0.6971,2805.2,2804.9,0.101]
[1763986921279,0.2093,2805.0,2804.9,0.101]
[1763986921850,0.0012,2805.2,2805.1,0.1]
[1763986922194,0.0012,2805.2,2804.9,0.001]
[1763986922195,0.0012,2805.2,2805.0,0.1]
[1763986922492,0.4894,2805.1,2805.0,0.1]
[1763986922694,0.6987,2805.1,2804.9,0.001]
[1763986922984,0.2093,2805.0,2804.9,0.001]
[1763986923191,0.6959,2805.0,2804.9,0.001]
[1763986925974,0.6959,2805.0,2804.9,0.101]
[1763986926279,0.2093,2805.0,2804.9,0.101]
[1763986927322,0.6959,2805.0,2804.9,0.101]
[1763986927486,0.2093,2805.0,2804.9,0.101]
[1763986928581,0.6959,2805.0,2804.9,0.101]
[1763986929900,0.0012,2805.2,2805.1,0.1]
[1763986930417,0.6999,2805.2,2805.1,0.1]
[1763986930911,0.6999,2805.2,2804.9,0.1438824]
[1763986931088,0.2093,2805.0,2804.9,0.001]
[1763986931494,0.6959,2805.0,2804.9,0.001]
[1763986933614,0.2093,2805.0,2804.9,0.101]
[1763986934526,0.6959,2805.0,2804.9,0.101]
[1763986935528,0.6959,2805.0,2804.9,0.001]
[1763986936534,0.2093,2805.0,2804.9,0.001]
[1763986936700,0.2093,2805.0,2804.9,0.101]
[1763986936903,0.0012,2805.2,2805.0,0.1]
[1763986937097,0.0012,2805.2,2805.1,0.1]
[1763986937303,0.4906,2805.2,2805.1,0.1]
[1763986937503,0.6999,2805.2,2805.1,0.1]
[1763986937903,0.6999,2805.2,2804.9,0.101]
[1763986938134,0.4621,2805.0,2804.9,0.101]
[1763986938427,0.4621,2805.0,2804.9,0.001]
[1763986938634,0.6984,2805.0,2804.9,0.001]
[1763986944568,0.4613,2805.0,2804.9,0.001]
[1763986945667,0.2375,2805.2,2805.1,0.1]
[1763986946168,0.6965,2805.2,2805.1,0.1]
[1763986946870,0.6965,2805.2,2804.9,0.001]
[1763986947075,0.6965,2805.2,2804.9,0.101]
[1763986947386,0.2444,2805.0,2804.9,0.101]
[1763986949981,0.0012,2805.2,2804.9,0.5771]
[1763986950373,0.4543,2805.2,2804.9,0.5771]
[1763986950575,0.0012,2805.2,2805.1,0.1]
[1763986950888,0.2456,2805.2,2805.1,0.1]
[1763986951589,0.0012,2805.2,2805.1,0.1]
[1763986952476,0.0012,2805.2,2805.1,1.1608]
[1763986952787,0.0012,2805.2,2805.1,1.2608]
[1763986954175,0.2456,2805.2,2805.1,0.1]
[1763986954376,0.6966,2805.2,2804.9,0.001]
[1763986954563,0.4522,2805.2,2804.9,0.001]
[1763986954764,0.2464,2805.0,2804.9,0.001]
[1763986955191,0.0045,2805.0,2804.9,0.101]
[1763986955692,0.4502,2805.2,2805.0,0.1]
[1763986956096,0.2485,2805.1,2805.0,0.1]
[1763986956277,0.2485,2805.1,2804.9,0.101]
[1763986956482,0.4531,2805.0,2804.9,0.101]
[1763986956673,0.6975,2805.0,2804.9,0.101]
[1763986956869,0.0012,2805.2,2804.9,0.5771]
[1763986957074,0.4543,2805.2,2804.9,0.5771]
[1763986960092,0.2444,2805.0,2804.9,0.101]
[1763986962833,0.2444,2805.0,2804.9,0.001]
[1763986963017,0.0012,2805.2,2804.9,0.001]
[1763986963222,0.4543,2805.2,2804.9,0.101]
[1763986963422,0.2444,2805.0,2804.9,0.101]
[1763986965513,0.0012,2805.2,2805.1,0.1]
[1763986965711,0.0012,2805.2,2805.1,0.5761]
[1763986966839,0.0012,2805.2,2805.1,1.0664]
[1763986967404,0.0012,2805.2,2805.1,1.2411]
[1763986968013,0.4627,2805.2,2804.9,0.001]
[1763986968216,0.0004,2805.2,2805.1,0.4882]
[1763986968631,0.0004,2805.2,2805.1,0.5882]
[1763986969002,0.2173,2805.2,2805.1,0.1]
[1763986971720,0.0004,2805.2,2805.1,0.5617]
[1763986972055,0.2199,2805.2,2805.1,0.1]
[1763986972218,0.0004,2805.2,2805.1,0.5617]
[1763986972618,0.0004,2805.2,2805.1,1.221]
[1763986972817,0.0004,2805.2,2805.1,6.72359435]
[1763986973038,0.0004,2805.2,2805.1,6.7592437]
[1763986973641,0.2116,2805.2,2805.0,0.1]
[1763986973852,0.6955,2805.2,2805.0,0.1]
[1763986974053,0.4843,2805.2,2805.0,0.1]
[1763986974256,0.2139,2805.1,2805.0,0.1]
[1763986974451,0.0004,2805.2,2805.0,0.1]
[1763986974657,0.0004,2805.2,2805.0,0.5617]
[1763986974959,0.0004,2805.2,2805.0,0.5627]
[1763986975147,0.0004,2805.2,2805.1,6.11226759]
[1763986975343,0.0004,2805.2,2805.1,6.72725954]
[1763986975560,0.0004,2805.2,2805.1,7.03276354]
[1763986975768,0.0004,2805.2,2805.1,7.13276354]
[1763986976525,0.0004,2805.2,2805.1,3.14848859]
[1763986976760,0.0004,2805.2,2805.1,11.36591323]
[1763986976933,0.0004,2805.2,2805.1,11.23026388]
[1763986977155,0.0004,2805.2,2805.1,11.33026388]
[1763986977353,0.0004,2805.2,2805.1,9.77243188]
[1763986978059,0.0004,2805.2,2805.1,2.24149595]
[1763986979089,0.0004,2805.2,2805.1,3.14848859]
[1763986979580,0.0004,2805.2,2805.1,6.71342388]
[1763986979752,0.0004,2805.2,2805.1,3.14848859]
[1763986980350,0.0004,2805.2,2805.1,2.14149595]
[1763986980551,0.0004,2805.2,2805.1,1.626504]
[1763986980848,0.0004,2805.2,2805.1,0.697804]
[1763986981180,0.0004,2805.2,2805.1,1.626504]
[1763986981683,0.0004,2805.2,2805.1,2.53349664]
[1763986982181,0.0004,2805.2,2805.1,1.626504]
[1763986983070,0.0004,2805.2,2805.1,2.69603645]
[1763986985489,0.0004,2805.2,2805.1,2.50373645]
[1763986985696,0.0004,2805.2,2805.1,2.69603645]
[1763986987289,0.0004,2805.2,2805.1,1.626504]
[1763986989615,0.0004,2805.2,2805.1,1.221]
[1763986991903,0.0016,2805.5,2805.1,1.221]
[1763986992231,0.0016,2805.5,2805.4,0.1]
[1763986992535,0.0016,2805.5,2805.4,0.326]
[1763986992710,0.2128,2805.5,2805.4,0.326]
[1763986993299,0.6967,2805.5,2805.0,0.001]
[1763986993504,0.2139,2805.1,2805.0,0.227]
[1763986994041,0.6951,2805.1,2805.0,0.327]
[1763986994238,0.2139,2805.1,2805.0,0.327]
[1763986995241,0.4812,2805.3,2805.2,0.1]
[1763986995538,0.0016,2805.5,2805.4,0.1]
[1763986995736,0.5012,2805.5,2805.4,0.1]
[1763986995933,0.6996,2805.5,2805.4,0.1]
[1763987000032,0.6996,2805.5,2805.2,0.1]
[1763987000231,0.2028,2805.3,2805.2,0.1]
[1763987000750,0.695,2805.3,2805.2,0.1]
[1763987001840,0.695,2805.3,2805.0,0.227]
[1763987002045,0.4951,2805.2,2805.1,0.1]
[1763987002556,0.6979,2805.2,2805.1,0.1]
[1763987002947,0.0016,2805.5,2805.4,0.1]
[1763987003349,0.2073,2805.5,2805.4,0.1]
[1763987005766,0.6967,2805.5,2805.4,0.1]
[1763987007870,0.6967,2805.5,2805.4,0.101]
[1763987008749,0.2073,2805.5,2805.4,0.101]
[1763987008950,0.6967,2805.5,2805.4,0.101]
[1763987009877,0.2073,2805.5,2805.4,0.101]
[1763987010766,0.0016,2805.5,2805.4,0.101]
[1763987011001,0.0016,2805.5,2805.4,0.5884]
[1763987011164,0.0016,2805.5,2805.4,1.0462]
[1763987011477,0.0016,2805.5,2805.4,1.88856809]
[1763987011677,0.0016,2805.5,2805.4,1.65676809]
[1763987011991,0.0016,2805.5,2805.4,0.95724362]
[1763987012878,0.0016,2805.5,2805.4,1.41504362]
[1763987013442,0.0016,2805.5,2805.4,0.95724362]
[1763987015805,0.6958,2805.5,2805.4,0.001]
[1763987016774,1.03013112,2805.5,2805.4,0.001]
[1763987016974,1.63734944,2805.5,2805.4,0.001]
[1763987018273,1.03013112,2805.5,2805.4,0.001]
[1763987018707,0.6958,2805.5,2805.4,0.001]
[1763987019111,1.02990092,2805.5,2805.4,0.001]
[1763987019278,1.02986316,2805.5,2805.4,0.001]
[1763987022113,0.6958,2805.5,2805.4,0.001]
[1763987025796,0.2036,2805.5,2805.4,0.001]
[1763987026016,0.6958,2805.5,2805.4,0.001]
[1763987026936,1.02968652,2805.5,2805.4,0.001]
[1763987028489,0.2036,2805.5,2805.4,0.001]
[1763987029717,0.0008,2805.5,2805.4,0.4729]
[1763987030031,0.0008,2805.5,2805.4,0.5729]
[1763987030923,0.2355,2805.5,2805.4,0.001]
[1763987031094,0.6962,2805.5,2805.4,0.001]
[1763987031524,1.43550967,2805.5,2805.4,0.001]
[1763987031920,1.31249664,2805.4,2805.1,0.001]
[1763987032083,0.206,2805.2,2805.1,0.001]
[1763987032288,0.5397993,2805.2,2805.1,0.001]
[1763987032507,1.0288993,2805.2,2805.1,0.001]
[1763987037366,0.206,2805.2,2805.1,0.001]
[1763987037706,0.6951,2805.2,2805.1,0.001]
[1763987038617,1.02826181,2805.2,2805.1,0.001]
[1763987039412,1.02746181,2805.2,2805.1,0.001]
[1763987040439,0.2052,2805.2,2805.1,0.001]
[1763987040606,0.6943,2805.2,2805.1,0.001]
[1763987041004,0.2052,2805.2,2805.1,0.001]
[1763987042023,0.6943,2805.2,2805.1,0.001]
[1763987042758,1.02760542,2805.2,2805.1,0.001]
[1763987045168,0.53850542,2805.2,2805.1,0.001]
[1763987045653,0.2052,2805.2,2805.1,0.001]
[1763987045858,0.6943,2805.2,2805.1,0.001]
[1763987046082,0.53850542,2805.2,2805.1,0.001]
[1763987048277,1.02760542,2805.2,2805.1,0.001]
[1763987053373,0.53850542,2805.2,2805.1,0.001]
[1763987054964,1.02760542,2805.2,2805.1,0.001]
[1763987058063,1.02960542,2805.2,2805.1,0.001]
[1763987059109,1.0301111,2805.2,2805.1,0.001]
[1763987060635,6.98372189,2805.2,2805.1,0.001]
[1763987060811,7.68209408,2805.2,2805.1,0.001]
[1763987063214,7.68129408,2805.2,2805.1,0.001]
[1763987064722,8.45196109,2805.2,2805.1,0.001]
[1763987066140,7.68129408,2805.2,2805.1,0.001]
[1763987067447,6.28520144,2805.2,2805.1,0.001]
[1763987068027,6.76810144,2805.2,2805.1,0.001]
[1763987068526,1.23858329,2805.2,2805.1,0.001]
[1763987068728,0.5402111,2805.2,2805.1,0.4595]
[1763987068926,0.3358111,2805.2,2805.1,0.4595]
[1763987069760,0.3358111,2805.2,2805.1,0.001]
[1763987069761,1.31980806,2805.2,2805.1,0.001]
[1763987070257,1.80000806,2805.2,2805.1,0.001]
[1763987070427,2.46923753,2805.2,2805.1,0.001]
[1763987070622,1.98903753,2805.2,2805.1,0.001]
[1763987071583,1.77573753,2805.2,2805.1,0.4595]
[1763987071868,0.3358111,2805.2,2805.1,0.4595]
[1763987072159,0.3358111,2805.2,2805.1,0.9292]
[1763987075992,0.3358111,2805.2,2805.1,0.4595]
[1763987076402,0.5491111,2805.2,2805.1,0.001]
[1763987078902,1.0293111,2805.2,2805.1,0.001]
[1763987079500,0.5491111,2805.2,2805.1,0.001]
[1763987079905,1.0293111,2805.2,2805.1,0.001]
[1763987082019,0.5491111,2805.2,2805.1,0.001]
[1763987082310,1.0293111,2805.2,2805.1,0.001]
[1763987083803,0.3358111,2805.2,2805.1,0.4595]
[1763987084114,0.3358111,2805.2,2805.1,0.9292]
[1763987086912,0.3350111,2805.2,2805.1,0.9292]
[1763987087118,0.3350111,2805.2,2805.1,0.4595]
[1763987087530,0.3350111,2805.2,2805.1,0.926]
[1763987087710,0.3350111,2805.2,2805.1,1.026]
[1763987088046,0.0012,2805.2,2805.1,1.026]
[1763987090577,0.33517312,2805.2,2805.1,0.4857]
[1763987090751,0.33517312,2805.2,2805.1,0.965]
[1763987094688,0.0012,2805.2,2805.1,0.965]
[1763987096689,0.54249121,2805.2,2805.1,0.001]
[1763987097908,0.33519121,2805.2,2805.1,0.4857]
[1763987098910,0.33519121,2805.2,2805.1,0.965]
[1763987101574,0.0012,2805.2,2805.1,1.065]
[1763987103913,0.0012,2805.2,2805.1,0.965]
[1763987106351,0.0012,2805.2,2805.1,0.4857]
[1763987106352,0.2085,2805.2,2805.1,0.4857]
[1763987106632,0.0012,2805.2,2805.1,0.4857]
[1763987107834,0.33535273,2805.2,2805.1,0.4857]
[1763987109102,0.33535273,2805.2,2805.1,0.965]
[1763987109306,0.33535273,2805.2,2805.1,0.4857]
[1763987110637,0.33535273,2805.2,2805.1,0.965]
[1763987110831,0.33455273,2805.2,2805.1,0.965]
[1763987111211,0.33455273,2805.2,2805.1,0.4857]
[1763987111445,0.0004,2805.2,2805.1,1.10064935]
[1763987111627,0.0008,2805.5,2805.4,0.505504]
[1763987111938,0.002,2806.1,2805.7,0.1]